fUST/lending_fUST_20250313
["ID","MTS","AMOUNT","RATE_DAILY","PERIOD"]
[356013886,1741795853206,-500.0,0.00022739,2]
[356013887,1741795853215,-500.0,0.00022739,2]
[356013888,1741795853225,-500.0,0.00022739,2]
[356013889,1741795853235,-500.0,0.00022739,2]
[356013890,1741795853245,-736.29,0.00022739,2]
[356013891,1741795853255,-500.0,0.00022739,2]
[356013892,1741795853264,-500.0,0.00022739,2]
[356013893,1741795853274,-1483.93,0.00022739,2]
[356013894,1741795853283,-619.57,0.00022739,2]
[356013895,1741795853292,-1186.04,0.00022739,2]
[356013896,1741795853303,-500.0,0.00022739,2]
[356013897,1741795853313,-500.0,0.00022739,2]
[356013898,1741795853323,-500.0,0.00022739,2]
[356013899,1741795853333,-500.0,0.00022739,2]
[356013900,1741795853343,-500.0,0.00022739,2]
[356013901,1741795853353,-500.0,0.00022739,2]
[356013902,1741795853363,-720.19,0.00022739,2]
[356013903,1741795853373,-500.0,0.00022739,2]
[356013904,1741795853383,-500.0,0.00022739,2]
[356013905,1741795853393,-500.0,0.00022739,2]
[356013906,1741795853403,-500.0,0.00022739,2]
[356013907,1741795853413,-500.0,0.00022739,2]
[356013908,1741795853423,-855.27,0.00022739,2]
[356013909,1741795853433,-523.55,0.00022739,2]
[356013910,1741795853443,-500.0,0.00022739,2]
[356013911,1741795853453,-500.0,0.00022739,2]
[356013912,1741795853464,-500.0,0.00022739,2]
[356013913,1741795853474,-919.4,0.00022739,2]
[356013914,1741795853484,-1310.03,0.00022739,2]
[356013915,1741795853494,-500.0,0.00022739,2]
[356013916,1741795853504,-863.11,0.00022739,2]
[356013917,1741795853514,-1456.28,0.00022739,2]
[356013918,1741795853524,-2253.86,0.00022739,2]
[356013919,1741795853534,-500.0,0.00022739,2]
[356013920,1741795853544,-754.24,0.00022739,2]
[356013921,1741795853555,-552.26,0.00022739,2]
[356013922,1741795853565,-209.71249026,0.00022739,2]
[356013923,1741795853575,-508.42,0.00022739,2]
[356013924,1741795853585,-912.68,0.00022739,2]
[356013925,1741795853596,-1141.66,0.00022739,2]
[356013926,1741795853606,-527.77,0.00022739,2]
[356013927,1741795853616,-895.56,0.00022739,2]
[356013928,1741795853626,-500.0,0.00022739,2]
[356013929,1741795853635,-500.0,0.00022739,2]
[356013930,1741795853645,-500.0,0.00022739,2]
[356013931,1741795853655,-500.0,0.00022739,2]
[356013932,1741795853665,-652.14,0.00022739,2]
[356013933,1741795853676,-500.0,0.00022739,2]
[356013934,1741795853686,-500.0,0.00022739,2]
[356013935,1741795853696,-851.58,0.00022739,2]
[356013936,1741795853706,-645.49,0.00022739,2]
[356013937,1741795853716,-500.0,0.00022739,2]
[356013938,1741795853727,-1280.69,0.00022739,2]
[356013939,1741795853736,-338.89568724,0.00022739,2]
[356013940,1741795853747,-516.25,0.00022739,2]
[356013941,1741795853756,-644.83,0.00022739,2]
[356013942,1741795853767,-500.0,0.00022739,5]
[356013943,1741795853776,-500.0,0.00022739,2]
[356013944,1741795853786,-500.0,0.00022739,2]
[356013945,1741795853796,-6107.43,0.00022739,2]
[356013946,1741795853806,-500.0,0.00022739,2]
[356013947,1741795853816,-500.0,0.00022739,2]
[356013948,1741795853825,-1008.33,0.00022739,2]
[356013949,1741795853835,-500.0,0.00022739,2]
[356013950,1741795853846,-500.0,0.00022739,2]
[356013951,1741795853856,-566.22,0.00022739,2]
[356013952,1741795853866,-927.4,0.00022739,2]
[356013953,1741795853878,-500.0,0.00022739,2]
[356013954,1741795853888,-500.0,0.00022739,2]
[356013955,1741795853898,-500.0,0.00022739,2]
[356013956,1741795853908,-500.0,0.00022739,2]
[356013957,1741795853919,-500.0,0.00022739,2]
[356013958,1741795853929,-500.0,0.00022739,2]
[356013959,1741795853939,-500.0,0.00022739,2]
[356013960,1741795853949,-2090.98,0.00022739,2]
[356013961,1741795853960,-781.71,0.00022739,2]
[356013962,1741795853970,-500.0,0.00022739,2]
[356013963,1741795853983,-500.0,0.00022739,2]
[356013964,1741795853993,-953.17,0.00022739,2]
[356013965,1741795854003,-674.66,0.00022739,2]
[356013966,1741795854014,-887.98,0.00022739,2]
[356013967,1741795854023,-813.34,0.00022739,2]
[356013968,1741795854033,-500.0,0.00022739,2]
[356013969,1741795854043,-500.0,0.00022739,2]
[356013970,1741795854053,-890.63,0.00022739,2]
[356013971,1741795854064,-543.6,0.00022739,2]
[356013972,1741795854074,-500.0,0.00022739,2]
[356013973,1741795854083,-577.80360306,0.00022739,2]
[356013974,1741795854094,-500.0,0.00022739,2]
[356013975,1741795854103,-529.22,0.00022739,2]
[356013976,1741795854112,-1180.71,0.00022739,2]
[356013977,1741795854121,-913.55,0.00022739,2]
[356013978,1741795854130,-785.88,0.00022739,2]
[356013979,1741795854140,-565.83,0.00022739,2]
[356013980,1741795854149,-500.0,0.00022739,2]
[356013981,1741795854159,-500.0,0.00022739,2]
[356013982,1741795854168,-3751.67,0.00022739,2]
[356013983,1741795854177,-1322.82,0.00022739,2]
[356013984,1741795854187,-500.0,0.00022739,2]
[356013985,1741795854196,-1115.31,0.00022739,2]
[356013986,1741795854206,-1142.99,0.00022739,2]
[356013987,1741795854215,-888.52,0.00022739,2]
[356013988,1741795854224,-500.0,0.00022739,2]
[356013989,1741795854234,-23620.97,0.00022739,2]
[356013990,1741795854243,-1185.4,0.00022739,2]
[356013991,1741795854253,-1257.36,0.00022739,2]
[356013992,1741795854262,-500.0,0.00022739,2]
[356013993,1741795854271,-500.0,0.00022739,2]
[356013994,1741795854281,-1127.38,0.00022739,2]
[356013995,1741795854290,-847.47,0.00022739,2]
[356013996,1741795854299,-500.0,0.00022739,2]
[356013997,1741795854309,-734.57,0.00022739,2]
[356013998,1741795854318,-1960.07,0.00022739,2]
[356013999,1741795854327,-500.0,0.00022739,2]
[356014000,1741795854337,-992.41,0.00022739,2]
[356014001,1741795854347,-500.0,0.00022739,2]
[356014002,1741795854356,-500.0,0.00022739,2]
[356014003,1741795854366,-500.0,0.00022739,2]
[356014004,1741795854375,-1220.26,0.00022739,2]
[356014005,1741795854384,-987.02,0.00022739,2]
[356014006,1741795854394,-12403.81,0.00022739,2]
[356014007,1741795854403,-752.49,0.00022739,2]
[356014008,1741795854412,-500.0,0.00022739,2]
[356014009,1741795854421,-500.0,0.00022739,2]
[356014010,1741795854430,-500.0,0.00022739,2]
[356014011,1741795854440,-2321.55,0.00022739,2]
[356014012,1741795854449,-500.0,0.00022739,2]
[356014013,1741795854459,-2302.48,0.00022739,2]
[356014014,1741795854469,-593.44,0.00022739,2]
[356014015,1741795854479,-2888.12,0.00022739,2]
[356014016,1741795854488,-500.0,0.00022739,2]
[356014017,1741795854498,-500.0,0.00022739,2]
[356014018,1741795854507,-500.0,0.00022739,2]
[356014019,1741795854517,-908.87,0.00022739,2]
[356014020,1741795854527,-1817.75,0.00022739,2]
[356014021,1741795854537,-1317.03,0.00022739,2]
[356014022,1741795854546,-1145.26,0.00022739,2]
[356014023,1741795854556,-820.89,0.00022739,2]
[356014024,1741795854566,-1565.22,0.00022739,2]
[356014025,1741795854577,-500.0,0.00022739,2]
[356014026,1741795854586,-944.88,0.00022739,2]
[356014027,1741795854598,-500.0,0.00022739,2]
[356014028,1741795854607,-500.0,0.00022739,2]
[356014029,1741795854618,-1051.66,0.00022739,2]
[356014030,1741795854628,-814.34,0.00022739,2]
[356014031,1741795854637,-766.67,0.00022739,2]
[356014032,1741795854647,-346.00397788,0.00022739,2]
[356014033,1741795854656,-500.0,0.00022739,2]
[356014034,1741795854666,-500.0,0.00022739,2]
[356014035,1741795854675,-500.0,0.00022739,2]
[356014036,1741795854686,-557.89,0.00022739,2]
[356014037,1741795854696,-500.0,0.00022739,2]
[356014038,1741795854705,-2231.85,0.00022739,2]
[356014039,1741795854716,-500.0,0.00022739,2]
[356014040,1741795854727,-500.0,0.00022739,2]
[356014041,1741795854797,-500.0,0.00022739,2]
[356014042,1741795854810,-500.0,0.00022739,2]
[356014043,1741795854821,-500.0,0.00022739,2]
[356014044,1741795854832,-541.41,0.00022739,2]
[356014045,1741795854843,-3056.13,0.00022739,2]
[356014046,1741795854863,-624.49,0.00022739,2]
[356014047,1741795854881,-816.01,0.00022739,2]
[356014048,1741795854894,-581.03157363,0.00022739,2]
[356014049,1741795854905,-1540.06,0.00022739,2]
[356014050,1741795854916,-500.0,0.00022739,2]
[356014051,1741795854929,-1907.61,0.00022739,2]
[356014052,1741795854939,-500.0,0.00022739,2]
[356014053,1741795854949,-500.0,0.00022739,2]
[356014054,1741795854960,-500.0,0.00022739,2]
[356014055,1741795854970,-611.25,0.00022739,2]
[356014056,1741795854979,-500.0,0.00022739,2]
[356014057,1741795854988,-1690.88,0.00022739,2]
[356014058,1741795854998,-500.0,0.00022739,2]
[356014059,1741795855007,-720.17931274,0.00022766,2]
[356014060,1741795855018,-151.0,0.000228,9]
[356014061,1741795855027,-500.0,0.00023013,2]
[356014062,1741795855037,-500.0,0.00023013,2]
[356014063,1741795855046,-500.0,0.00023013,2]
[356014064,1741795855056,-500.0,0.00023013,2]
[356014065,1741795855065,-500.0,0.00023013,2]
[356014066,1741795855075,-500.0,0.00023013,2]
[356014067,1741795855084,-500.0,0.00023013,2]
[356014068,1741795855093,-500.0,0.00023013,2]
[356014069,1741795855103,-500.0,0.00023013,2]
[356014070,1741795855113,-500.0,0.00023013,2]
[356014071,1741795855122,-216.26032898,0.00023013,2]
[356014072,1741795855132,-1683.55,0.00023013,2]
[356014073,1741795855140,-500.0,0.00023013,2]
[356014074,1741795855151,-500.0,0.00023013,2]
[356014075,1741795855160,-500.0,0.00023013,2]
[356014076,1741795855169,-500.0,0.00023013,2]
[356014077,1741795855179,-500.0,0.00023013,2]
[356014078,1741795855188,-500.0,0.00023013,2]
[356014079,1741795855197,-500.0,0.00023013,2]
[356014080,1741795855207,-516.58,0.00023013,2]
[356014081,1741795855216,-603.15,0.00023013,2]
[356014082,1741795855225,-500.0,0.00023013,2]
[356014083,1741795855235,-500.0,0.00023013,2]
[356014084,1741795855244,-514.75,0.00023013,2]
[356014085,1741795855254,-500.0,0.00023013,2]
[356014086,1741795855264,-827.3,0.00023013,2]
[356014087,1741795855274,-830.78,0.00023013,2]
[356014088,1741795855283,-500.0,0.00023013,2]
[356014089,1741795855293,-500.0,0.00023013,2]
[356014090,1741795855303,-500.0,0.00023013,2]
[356014091,1741795855312,-500.0,0.00023013,2]
[356014092,1741795855322,-500.0,0.00023013,2]
[356014093,1741795855331,-500.0,0.00023013,2]
[356014094,1741795855341,-500.0,0.00023013,2]
[356014095,1741795855359,-736.29,0.00023013,2]
[356014096,1741795855369,-500.0,0.00023013,2]
[356014097,1741795855379,-500.0,0.00023013,2]
[356014098,1741795855390,-1483.93,0.00023013,2]
[356014099,1741795855400,-619.57,0.00023013,2]
[356014100,1741795855409,-1186.04,0.00023013,2]
[356014101,1741795855419,-500.0,0.00023013,2]
[356014102,1741795855428,-500.0,0.00023013,2]
[356014103,1741795855437,-500.0,0.00023013,2]
[356014104,1741795855446,-500.0,0.00023013,2]
[356014105,1741795855455,-500.0,0.00023013,2]
[356014106,1741795855465,-500.0,0.00023013,2]
[356014107,1741795855474,-720.19,0.00023013,2]
[356014108,1741795855484,-500.0,0.00023013,2]
[356014109,1741795855493,-500.0,0.00023013,2]
[356014110,1741795855502,-500.0,0.00023013,2]
[356014111,1741795855512,-500.0,0.00023013,2]
[356014112,1741795855521,-500.0,0.00023013,2]
[356014113,1741795855531,-855.27,0.00023013,2]
[356014114,1741795855541,-523.55,0.00023013,2]
[356014115,1741795855551,-500.0,0.00023013,2]
[356014116,1741795855560,-361.9320993,0.00023013,2]
[356014117,1741795855570,-500.0,0.00023013,2]
[356014118,1741795855579,-919.4,0.00023013,2]
[356014119,1741795855588,-1310.03,0.00023013,2]
[356014120,1741795855601,-500.0,0.00023013,2]
[356014121,1741795855611,-863.11,0.00023013,2]
[356014122,1741795855620,-1456.28,0.00023013,2]
[356014123,1741795855629,-2253.86,0.00023013,2]
[356014124,1741795855639,-754.24,0.00023013,2]
[356014125,1741795855647,-472.06429955,0.00023013,2]
[356014126,1741795855657,-552.26,0.00023013,2]
[356014127,1741795855667,-912.68,0.00023013,2]
[356014128,1741795855676,-1141.66,0.00023013,2]
[356014129,1741795855686,-527.77,0.00023013,2]
[356014130,1741795855695,-895.56,0.00023013,2]
[356014131,1741795855705,-500.0,0.00023013,2]
[356014132,1741795855714,-500.0,0.00023013,2]
[356014133,1741795855723,-500.0,0.00023013,2]
[356014134,1741795855733,-500.0,0.00023013,2]
[356014135,1741795855742,-652.14,0.00023013,2]
[356014136,1741795855752,-500.0,0.00023013,2]
[356014137,1741795855761,-500.0,0.00023013,2]
[356014138,1741795855771,-851.58,0.00023013,2]
[356014139,1741795855780,-645.49,0.00023013,2]
[356014140,1741795855790,-500.0,0.00023013,2]
[356014141,1741795855799,-1280.69,0.00023013,2]
[356014142,1741795855809,-516.25,0.00023013,2]
[356014143,1741795855818,-644.83,0.00023013,2]
[356014144,1741795855827,-500.0,0.00023013,5]
[356014145,1741795855836,-500.0,0.00023013,2]
[356014146,1741795855848,-500.0,0.00023013,2]
[356014147,1741795855857,-6107.43,0.00023013,2]
[356014148,1741795855868,-500.0,0.00023013,2]
[356014149,1741795855880,-500.0,0.00023013,2]
[356014150,1741795855889,-1008.33,0.00023013,2]
[356014151,1741795855898,-500.0,0.00023013,2]
[356014152,1741795855909,-407.41317872,0.00023013,2]
[356014153,1741795855919,-566.22,0.00023013,2]
[356014154,1741795855929,-927.4,0.00023013,2]
[356014155,1741795855938,-500.0,0.00023013,2]
[356014156,1741795855951,-275.54732338,0.00023013,2]
[356014157,1741795855961,-581.14234095,0.00023013,2]
[356014158,1741795855971,-500.0,0.00023013,2]
[356014159,1741795855981,-500.0,0.00023013,2]
[356014160,1741795855990,-500.0,0.00023013,2]
[356014161,1741795856000,-500.0,0.00023013,2]
[356014162,1741795856010,-2090.98,0.00023013,2]
[356014163,1741795856019,-781.71,0.00023013,2]
[356014164,1741795856028,-500.0,0.00023013,2]
[356014165,1741795856038,-500.0,0.00023013,2]
[356014166,1741795856047,-953.17,0.00023013,2]
[356014167,1741795856057,-674.66,0.00023013,2]
[356014168,1741795856066,-887.98,0.00023013,2]
[356014169,1741795856076,-813.34,0.00023013,2]
[356014170,1741795856085,-500.0,0.00023013,2]
[356014171,1741795856099,-500.0,0.00023013,2]
[356014172,1741795856108,-890.63,0.00023013,2]
[356014173,1741795856117,-543.6,0.00023013,2]
[356014174,1741795856127,-500.0,0.00023013,2]
[356014175,1741795856137,-500.0,0.00023013,2]
[356014176,1741795856146,-529.22,0.00023013,2]
[356014177,1741795856157,-1180.71,0.00023013,2]
[356014178,1741795856166,-913.55,0.00023013,2]
[356014179,1741795856176,-785.88,0.00023013,2]
[356014180,1741795856185,-565.83,0.00023013,2]
[356014181,1741795856195,-500.0,0.00023013,2]
[356014182,1741795856204,-500.0,0.00023013,2]
[356014183,1741795856214,-3751.67,0.00023013,2]
[356014184,1741795856224,-1322.82,0.00023013,2]
[356014185,1741795856233,-500.0,0.00023013,2]
[356014186,1741795856243,-1115.31,0.00023013,2]
[356014187,1741795856253,-1142.99,0.00023013,2]
[356014188,1741795856264,-888.52,0.00023013,2]
[356014189,1741795856274,-500.0,0.00023013,2]
[356014190,1741795856284,-23620.97,0.00023013,2]
[356014191,1741795856293,-1185.4,0.00023013,2]
[356014192,1741795856303,-1257.36,0.00023013,2]
[356014193,1741795856314,-500.0,0.00023013,2]
[356014194,1741795856325,-500.0,0.00023013,2]
[356014195,1741795856336,-1127.38,0.00023013,2]
[356014196,1741795856348,-847.47,0.00023013,2]
[356014197,1741795856357,-500.0,0.00023013,2]
[356014198,1741795856367,-734.57,0.00023013,2]
[356014199,1741795856377,-1960.07,0.00023013,2]
[356014200,1741795856388,-500.0,0.00023013,2]
[356014201,1741795856398,-992.41,0.00023013,2]
[356014202,1741795856407,-500.0,0.00023013,2]
[356014203,1741795856417,-500.0,0.00023013,2]
[356014204,1741795856427,-500.0,0.00023013,2]
[356014205,1741795856437,-1220.26,0.00023013,2]
[356014206,1741795856447,-987.02,0.00023013,2]
[356014207,1741795856458,-12403.81,0.00023013,2]
[356014208,1741795856468,-752.49,0.00023013,2]
[356014209,1741795856478,-500.0,0.00023013,2]
[356014210,1741795856488,-500.0,0.00023013,2]
[356014211,1741795856498,-500.0,0.00023013,2]
[356014212,1741795856508,-2321.55,0.00023013,2]
[356014213,1741795856518,-500.0,0.00023013,2]
[356014214,1741795856528,-2302.48,0.00023013,2]
[356014215,1741795856539,-593.44,0.00023013,2]
[356014216,1741795856549,-2888.12,0.00023013,2]
[356014217,1741795856559,-500.0,0.00023013,2]
[356014218,1741795856569,-500.0,0.00023013,2]
[356014219,1741795856580,-524.76329756,0.00023013,2]
[356014220,1741795856590,-908.87,0.00023013,2]
[356014221,1741795856603,-1817.75,0.00023013,2]
[356014222,1741795856612,-1317.03,0.00023013,2]
[356014223,1741795856622,-1145.26,0.00023013,2]
[356014224,1741795856632,-820.89,0.00023013,2]
[356014225,1741795856642,-1565.22,0.00023013,2]
[356014226,1741795856652,-355.85274726,0.00023013,2]
[356014227,1741795856662,-944.88,0.00023013,2]
[356014228,1741795856672,-500.0,0.00023013,2]
[356014229,1741795856682,-1051.66,0.00023013,2]
[356014230,1741795856692,-500.0,0.00023013,2]
[356014231,1741795856702,-814.34,0.00023013,2]
[356014232,1741795856712,-766.67,0.00023013,2]
[356014233,1741795856723,-500.0,0.00023013,2]
[356014234,1741795856732,-500.0,0.00023013,2]
[356014235,1741795856742,-500.0,0.00023013,2]
[356014236,1741795856752,-557.89,0.00023013,2]
[356014237,1741795856762,-500.0,0.00023013,2]
[356014238,1741795856771,-2231.85,0.00023013,2]
[356014239,1741795856782,-500.0,0.00023013,2]
[356014240,1741795856792,-500.0,0.00023013,2]
[356014241,1741795856802,-500.0,0.00023013,2]
[356014242,1741795856811,-589.65731906,0.00023013,2]
[356014243,1741795856821,-500.0,0.00023013,2]
[356014244,1741795856831,-541.41,0.00023013,2]
[356014245,1741795856840,-3056.13,0.00023013,2]
[356014246,1741795856851,-624.49,0.00023013,2]
[356014247,1741795856862,-816.01,0.00023013,2]
[356014248,1741795856875,-1540.06,0.00023013,2]
[356014249,1741795856885,-500.0,0.00023013,2]
[356014250,1741795856895,-1907.61,0.00023013,2]
[356014251,1741795856906,-242.15153346,0.00023013,2]
[356014252,1741795856916,-500.0,0.00023013,2]
[356014253,1741795856925,-500.0,0.00023013,2]
[356014254,1741795856936,-611.25,0.00023013,2]
[356014255,1741795856947,-500.0,0.00023013,2]
[356014256,1741795856957,-1690.88,0.00023013,2]
[356014257,1741795856967,-1152.0,0.00023069,2]
[356014258,1741795856977,-1041.62918848,0.000232,7]
[356014259,1741795856987,-720.17931274,0.00023228,2]
[356014260,1741795856998,-500.0,0.00023287,2]
[356014261,1741795857008,-284.21883683,0.00023287,2]
[356014262,1741795857019,-500.0,0.00023287,2]
[356014263,1741795857030,-500.0,0.00023287,2]
[356014264,1741795857042,-500.0,0.00023287,2]
[356014265,1741795857053,-500.0,0.00023287,2]
[356014266,1741795857064,-500.0,0.00023287,2]
[356014267,1741795857075,-500.0,0.00023287,2]
[356014268,1741795857086,-500.0,0.00023287,2]
[356014269,1741795857097,-500.0,0.00023287,2]
[356014270,1741795857107,-1683.55,0.00023287,2]
[356014271,1741795857118,-494.59,0.00023287,2]
[356014272,1741795857128,-500.0,0.00023287,2]
[356014273,1741795857139,-500.0,0.00023287,2]
[356014274,1741795857149,-500.0,0.00023287,2]
[356014275,1741795857160,-500.0,0.00023287,2]
[356014276,1741795857170,-201.21,0.00023287,2]
[356014277,1741795857180,-500.0,0.00023287,2]
[356014278,1741795857191,-500.0,0.00023287,2]
[356014279,1741795857201,-516.58,0.00023287,2]
[356014280,1741795857210,-603.15,0.00023287,2]
[356014281,1741795857220,-500.0,0.00023287,2]
[356014282,1741795857230,-500.0,0.00023287,2]
[356014283,1741795857240,-514.75,0.00023287,2]
[356014284,1741795857251,-500.0,0.00023287,2]
[356014285,1741795857260,-827.3,0.00023287,2]
[356014286,1741795857270,-830.78,0.00023287,2]
[356014287,1741795857281,-500.0,0.00023287,2]
[356014288,1741795857291,-500.0,0.00023287,2]
[356014289,1741795857301,-500.0,0.00023287,2]
[356014290,1741795857311,-500.0,0.00023287,2]
[356014291,1741795857321,-500.0,0.00023287,2]
[356014292,1741795857331,-736.29,0.00023287,2]
[356014293,1741795857342,-500.0,0.00023287,2]
[356014294,1741795857355,-500.0,0.00023287,2]
[356014295,1741795857365,-1483.93,0.00023287,2]
[356014296,1741795857375,-619.57,0.00023287,2]
[356014297,1741795857386,-1186.04,0.00023287,2]
[356014298,1741795857396,-500.0,0.00023287,2]
[356014299,1741795857406,-500.0,0.00023287,2]
[356014300,1741795857416,-500.0,0.00023287,2]
[356014301,1741795857426,-500.0,0.00023287,2]
[356014302,1741795857436,-500.0,0.00023287,2]
[356014303,1741795857446,-500.0,0.00023287,2]
[356014304,1741795857456,-720.19,0.00023287,2]
[356014305,1741795857466,-500.0,0.00023287,2]
[356014306,1741795857476,-500.0,0.00023287,2]
[356014307,1741795857485,-500.0,0.00023287,2]
[356014308,1741795857495,-500.0,0.00023287,2]
[356014309,1741795857505,-500.0,0.00023287,2]
[356014310,1741795857515,-855.27,0.00023287,2]
[356014311,1741795857525,-523.55,0.00023287,2]
[356014312,1741795857535,-500.0,0.00023287,2]
[356014313,1741795857545,-500.0,0.00023287,2]
[356014314,1741795857555,-919.4,0.00023287,2]
[356014315,1741795857565,-1310.03,0.00023287,2]
[356014316,1741795857575,-500.0,0.00023287,2]
[356014317,1741795857585,-863.11,0.00023287,2]
[356014318,1741795857596,-1456.28,0.00023287,2]
[356014319,1741795857606,-2253.86,0.00023287,2]
[356014320,1741795857616,-754.24,0.00023287,2]
[356014321,1741795857627,-552.26,0.00023287,2]
[356014322,1741795857636,-912.68,0.00023287,2]
[356014323,1741795857646,-1141.66,0.00023287,2]
[356014324,1741795857656,-527.77,0.00023287,2]
[356014325,1741795857666,-895.56,0.00023287,2]
[356014326,1741795857676,-500.0,0.00023287,2]
[356014327,1741795857686,-500.0,0.00023287,2]
[356014328,1741795857696,-500.0,0.00023287,2]
[356014329,1741795857706,-500.0,0.00023287,2]
[356014330,1741795857716,-652.14,0.00023287,2]
[356014331,1741795857725,-500.0,0.00023287,2]
[356014332,1741795857736,-500.0,0.00023287,2]
[356014333,1741795857746,-851.58,0.00023287,2]
[356014334,1741795857755,-645.49,0.00023287,2]
[356014335,1741795857765,-500.0,0.00023287,2]
[356014336,1741795857775,-1280.69,0.00023287,2]
[356014337,1741795857785,-516.25,0.00023287,2]
[356014338,1741795857795,-644.83,0.00023287,2]
[356014339,1741795857806,-500.0,0.00023287,5]
[356014340,1741795857816,-500.0,0.00023287,2]
[356014341,1741795857826,-500.0,0.00023287,2]
[356014342,1741795857836,-6107.43,0.00023287,2]
[356014343,1741795857849,-500.0,0.00023287,2]
[356014344,1741795857859,-500.0,0.00023287,2]
[356014345,1741795857873,-1008.33,0.00023287,2]
[356014346,1741795857883,-500.0,0.00023287,2]
[356014347,1741795857893,-566.22,0.00023287,2]
[356014348,1741795857903,-927.4,0.00023287,2]
[356014349,1741795857913,-500.0,0.00023287,2]
[356014350,1741795857923,-500.0,0.00023287,2]
[356014351,1741795857933,-500.0,0.00023287,2]
[356014352,1741795857943,-500.0,0.00023287,2]
[356014353,1741795857955,-500.0,0.00023287,2]
[356014354,1741795857965,-2090.98,0.00023287,2]
[356014355,1741795857975,-781.71,0.00023287,2]
[356014356,1741795857985,-115.26845745,0.00023287,2]
[356014357,1741795858930,-189.35435377,0.00018266,2]
[356014358,1741795858939,-189.35435377,0.00019633,2]
[356014359,1741795858949,-189.35435377,0.00020999,2]
[356014360,1741795858960,-500.0,0.00021917,2]
[356014361,1741795858970,-173.82170829,0.00021917,2]
[356014421,1741797031964,-1000.0,0.000174,5]
[356014422,1741797031974,-1829.7,0.000179,2]
[356014423,1741797031983,-437.0,0.000179,7]
[356014424,1741797031993,-437.0,0.000194,8]
[356014425,1741797032003,-150.00057548,0.0002,7]
[356014426,1741797032013,-745.1386925,0.00020808,2]
[356014427,1741797032023,-437.0,0.000209,9]
[356014428,1741797032033,-1115.76166574,0.000209,2]
[356014429,1741797032043,-300.0,0.00020999,2]
[356014430,1741797032054,-500.0,0.00021,2]
[356014431,1741797032064,-500.0,0.00021,2]
[356014432,1741797032074,-500.0,0.00021,2]
[356014433,1741797032084,-500.0,0.00021,2]
[356014434,1741797032094,-500.0,0.00021,2]
[356014435,1741797032104,-1000.0,0.00021,2]
[356014436,1741797032114,-2305.53660184,0.000212,30]
[356014437,1741797032123,-179.62279214,0.00021475,2]
[356014438,1741797032133,-540.0,0.00021712,2]
[356014439,1741797032146,-1920.0,0.00021712,2]
[356014440,1741797032156,-2272.0,0.00021712,2]
[356014441,1741797032165,-398.0,0.00021712,2]
[356014442,1741797032176,-5840.0,0.000218,2]
[356014443,1741797032185,-2197.12086644,0.00021816,2]
[356014444,1741797032194,-3000.0,0.00021817,2]